Cogmind - Beta 16 @@@ ROGUE MODE // 2026.01.06 @ 02:16:29 Player: C4PT41N Result: Destroyed by G-47 Trooper with Particle Gun Performance ------------- Evolutions (0) 0 Regions Visited (1) 200 Robots Destroyed (21) 105 Value Destroyed (411) 411 Prototype IDs (0) 0 Alien Tech Used (0) 0 Bonus (0) 0 TOTAL SCORE: 716 Bonus ------- None Cogmind --------- Core Integrity 0/250 Matter 292/300 Energy 98/100 System Corruption 10% Temperature Warm (124) Movement Rolling (100) Location -10/Materials Parts ------- > --- POWER (1) -------- Backup Power I > --- PROPULSION (2) --- Compact Wheel > --- UTILITY (2) ------ Seismic Detector Weapon Shielding > --- WEAPON (2) ------- Particle Gun Mining Claw > --- INVENTORY (5) ---- Wheel Wheel Transport Network Coupler Propulsion Shielding Datajack Peak State ------------ > --- POWER ------------ Ion Engine > --- PROPULSION ------- Aluminum Leg Aluminum Leg > --- UTILITY ---------- Small Storage Unit Seismic Detector > --- WEAPON ----------- Medium Laser Mini Grenade Launcher > --- INVENTORY -------- Light Ion Engine Light Treads Light Treads Compact Wheel Compact Wheel Improved Terrain Scanner Medium Laser Light Assault Rifle [Rating: 9] Favorites ----------- Power Ion Engine Engine Ion Engine Propulsion Aluminum Leg Treads Light Treads Leg Aluminum Leg Wheel Compact Wheel Hover Unit Hover Unit Utility Seismic Detector Device Seismic Detector Storage Small Storage Unit Protection Weapon Shielding Weapon Medium Laser Energy Gun Medium Laser Ballistic Gun Light Assault Rifle Launcher Mini Grenade Launcher Slashing Weapon Mining Claw Build | -11 -10 ------- Run | Yrd Mat Slots Evolved . | . . Power . | . . Propulsion . | . . Utility . | . . Weapon . | . . Parts Attached 23 | 11 12 Power 2 | 1 1 Engine 2 | 1 1 Core . | . . Reactor . | . . Propulsion 8 | 4 4 Treads 2 | 2 . Leg 2 | 2 . Wheel 2 | . 2 Hover 2 | . 2 Flight . | . . Utility 8 | 3 5 Device 3 | 2 1 Storage 3 | 1 2 Processor . | . . Hackware . | . . Protection 2 | . 2 Artifact . | . . Weapon 5 | 3 2 Energy Gun 2 | 1 1 Energy Cannon . | . . Ballistic Gun 1 | 1 . Ballistic Cannon . | . . Launcher 1 | 1 . Special Weapon . | . . Impact Weapon . | . . Slashing Weapon 1 | . 1 Piercing Weapon . | . . Special Melee Weapon . | . . Unidentified Prototypes . | . . Parts Lost 8 | 1 7 Power 1 | . 1 Propulsion 3 | 1 2 Utility 2 | . 2 Weapon 2 | . 2 Highest Loss Streak 5 | 1 5 To Critical Strikes . | . . Average Backups 7 | 7 5 Power . | . . Propulsion 3 | 3 2 Utility 1 | 1 2 Weapon . | 1 . Tool/Special . | . . Unused Backups 8 | . 8 Power . | . . Propulsion 2 | . 2 Utility 3 | . 3 Weapon 1 | . 1 Tool/Special 2 | . 2 Average Slot Usage (%) 86 | . 86 Engine 7 | . 7 Treads 15 | . 15 Wheel 6 | . 6 Hover 5 | . 5 Device 10 | . 10 Storage 3 | . 3 Protection 9 | . 9 Energy Gun 12 | . 12 Launcher 6 | . 6 Slashing Weapon 6 | . 6 Peak Build Rating 9 | 9 9 Average Rating 7 | 7 7 On Entrance 4 | . 8 Avg Prop Armor Cover (%) . | . . Naked Turns . | . . Heaviest Build 19 | 14 19 Greatest Support 40 | 40 40 Greatest Overweight (x) 1 | 1 1 Average Overweight (x) . | . . Largest Inventory Capacity 20 | 8 20 Average Capacity 7 | 7 6 Most Carried 10 | 8 10 Average Carried 7 | 7 5 Final Capacity 8 | 8 5 Final Carried 7 | 7 5 Class Distribution -------------------- 97% | Mutant Dominant Class ---------------- Mutant | -10/Materials Resources | -11 -10 ----------- Run | Yrd Mat Matter Collected 614 | 380 234 Remotely 124 | 124 . Salvage Created 602 | 199 403 Parts 31 | 14 17 Haulers Intercepted 1 | . 1 Recyclers Shooed . | . . Parts Field Recycled . | . . Retrieved Matter . | . . Parts Self-Destructed . | . . Prevented . | . . Parts Restored . | . . Kills | -11 -10 ------- Run | Yrd Mat Combat Hostiles Destroyed 9 | 1 8 Melee 1 | . 1 Guns 5 | 1 4 AOE 3 | . 3 Classes Destroyed 8 | 4 4 Worker 2 | 2 . Tunneler 4 | 3 1 Hauler 1 | . 1 Recycler 3 | 1 2 Watcher 2 | . 2 Swarmer 3 | . 3 Grunt 5 | . 5 Demolisher 1 | 1 . Best Kill Streak 4 | 2 4 Combat Bots Only 3 | 1 3 Max Kills in Single Turn 2 | 1 2 Gunslinging . | . . Exploded 1 | . 1 Melee 1 | . 1 Uniques/NPCs Destroyed . | . . Combat | -11 -10 -------- Run | Yrd Mat Hostile Shots Fired 61 | 5 56 Missed 14 | 2 12 Hits 47 | 3 44 Projectile 47 | 3 44 AOE 5 | 5 . Critical Strikes 1 | . 1 Damage Taken 1074 | 156 918 Core 253 | 35 218 Absorbed by Shields . | . . Redirected to Shielding 41 | . 41 Regen/Repaired (Parts) 10 | . 10 Core Remaining (%) 86 | 86 . Volleys Fired 65 | 30 35 Largest 2 | 2 2 Hottest 80 | 80 80 Shots Fired 101 | 59 42 Gun 88 | 54 34 Cannon . | . . Launcher 13 | 5 8 Special . | . . Kinetic 25 | 25 . Thermal 63 | 29 34 Explosive 13 | 5 8 Electromagnetic . | . . Robot Hit Streak 10 | 10 5 Robot Miss Streak 4 | 4 4 Penetration Max . | . . Secondary Targets . | . . Shots Hit Robots 65 | 40 25 Core Hits 36 | 13 23 Critical Kills . | . . Critical Parts Destroyed . | . . Critical Strikes 2 | 2 . Burn 2 | 2 . Melee Attacks 5 | . 5 Impact . | . . Slashing 5 | . 5 Piercing . | . . Sneak Attacks 1 | . 1 Combat Hostiles . | . . Follow-up Attacks . | . . Damage Inflicted 1429 | 426 1003 Guns 623 | 384 239 Cannons . | . . Explosions 663 | 42 621 Melee 143 | . 143 Ramming . | . . Kinetic 130 | 130 . Thermal 493 | 254 239 Explosive 663 | 42 621 Electromagnetic . | . . Impact . | . . Slashing 143 | . 143 Piercing . | . . Highest Corruption 10 | . 10 Average Corruption 10 | . 10 Corruption Purged . | . . Corruption Blocked . | . . Effects 17 | . 17 Message Errors 3 | . 3 Matter Fused 5 | . 5 Heat Flow Errors 6 | . 6 Data Loss (minor) 1 | . 1 Data Loss (major) 1 | . 1 Misdirections 1 | . 1 Overload Shots . | . . Overflow Damage 19 | . 19 Projectiles . | . . Explosions 4 | . 4 Melee 15 | . 15 Knockbacks . | . . Impact . | . . Kinetic . | . . Secondary . | . . Self-Inflicted Damage 42 | . 42 Shots 2 | . 2 Rammed . | . . Targets Rammed . | . . Kicked . | . . Crushed . | . . Highest Temperature 273 | 90 273 Average Temperature 53 | 39 63 Received Heat Transfer 339 | . 339 Siege Activations . | . . Martial Activations . | . . Shielding Activations . | . . Robots Disrupted . | . . Combat Hostiles . | . . Robots Corrupted . | . . Combat Hostiles . | . . Parts Fried . | . . Impact Corruptions . | . . Robots Melted . | . . Combat Hostiles . | . . Parts Melted 1 | 1 . Heat Transferred 1517 | 888 629 Parts Sabotaged . | . . Parts Stolen . | . . Parts Stripped . | . . Power Chain Reactions . | . . Alert | -11 -10 ------- Run | Yrd Mat Maximum Alert Level . | . . Low Security (%) 100 | 100 100 Level 1 . | . . Level 2 . | . . Level 3 . | . . Level 4 . | . . Level 5 . | . . High Security . | . . Max Security . | . . Peak Influence 128 | 30 128 Initial 19 | . 19 Average 4 | . 31 Influence Increases 412 | 60 352 Destroy 0b10 Robot/C 180 | 20 160 Destroy 0b10 Robot/NC 60 | 30 30 Destroy Leader 46 | 10 36 Successful Hack 6 | . 6 Disable Machine 75 | . 75 Destroy Structure 45 | . 45 Influence Decreases 392 | 30 362 Entered New Map 11 | . 11 Time Decay 321 | 30 291 Lost Part 60 | . 60 Squads Dispatched . | . . Investigation . | . . Extermination . | . . Reinforcement . | . . Assault . | . . Garrison . | . . Intercept . | . . Searches Triggered . | . . Construction Impeded . | . . Haulers Reinforced . | . . Active Scanning Responses . | . . Cargo Convoy Interrupts . | . . Stealth | -11 -10 --------- Run | Yrd Mat Distress Signals 1 | . 1 Communications Jammed . | . . Distress Signals . | . . Times Spotted 16 | 1 15 Peak Tracking Total 4 | 1 4 Tactical Retreats . | . . Traps | -11 -10 ------- Run | Yrd Mat Traps Triggered . | . . Indirectly . | . . Trap Hack Attempts . | . . Triggered . | . . Disarmed . | . . Reprogrammed . | . . Reused . | . . Traps Extracted . | . . Installed . | . . Triggered . | . . Machines | -11 -10 ---------- Run | Yrd Mat Machines Disabled 5 | . 5 Max in Single Turn 2 | . 2 Machines Repaired . | . . Machines Dismantled . | . . Machines Sabotaged . | . . Overloaded Fab Kills . | . . Hacking | -11 -10 --------- Run | Yrd Mat Machines Accessed 4 | . 4 Terminals 3 | . 3 Fabricators . | . . Repair Stations 1 | . 1 Recycling Units . | . . Scanalyzers . | . . Garrison Access . | . . Total Hacks 13 | . 13 Successful 8 | . 8 Failed 5 | . 5 Catastrophic . | . . Database Lockouts . | . . Manual 7 | . 7 Terminals 8 | . 8 Fabricators . | . . Repair Stations 5 | . 5 Recycling Units . | . . Scanalyzers . | . . Garrison Access . | . . Terminal Hacks 3 | . 3 Record 1 | . 1 Locate Traps 1 | . 1 Zone Layout 1 | . 1 Fabricator Hacks . | . . Repair Station Hacks 4 | . 4 Scan Component 2 | . 2 Repair 1 | . 1 Refit 1 | . 1 Recycling Unit Hacks . | . . Scanalyzer . | . . Garrison Access Hacks . | . . Unauthorized Hacks 1 | . 1 Terminals 1 | . 1 Track 1 | . 1 Fabricators . | . . Repair Stations . | . . Recycling Units . | . . Scanalyzers . | . . Garrison Access . | . . Data Cores Recovered . | . . Used . | . . Hacking Detections 1 | . 1 Full Trace Events . | . . Feedback Events . | . . Feedback Blocked . | . . Robot Schematics Acquired . | . . Robots Built . | . . Authchips . | . . Time . | . . Total Robot Build Rating . | . . Part Schematics Acquired . | . . Parts Built . | . . Authchips . | . . Time . | . . Total Part Build Rating . | . . Part Studies Acquired . | . . Parts Repaired 1 | . 1 Time 26 | . 26 Parts Recycled . | . . Recycled Matter . | . . Retrieved Matter . | . . Retrieved Components . | . . Parts Scanalyzed . | . . Part Schematics Acquired . | . . Parts Damaged . | . . Bothacking | -11 -10 ------------ Run | Yrd Mat Used RIF Installer . | . . Robots Hacked . | . . Non-combat . | . . Combat . | . . Robot Hacks Applied . | . . Relay Couplers Released . | . . Fabnet Peak Effective % . | . . Robots Rewired . | . . Allies Hacked . | . . Hacks Repelled . | . . Allies | -11 -10 -------- Run | Yrd Mat Total Allies . | . . Largest Group . | . . Highest-Rated Group . | . . Highest-Rated Ally . | . . Total Orders . | . . Ally Attacks . | . . Total Damage . | . . Kills . | . . Allies Corrupted . | . . Allies Melted . | . . Intel | -11 -10 ------- Run | Yrd Mat Active Infowar (turns) 6655 | 6055 600 Sensors 290 | . 290 Seismic 6365 | 6055 310 Robot Analysis Total . | . . Derelict Logs Recovered . | . . Drone Launches . | . . Drone Recoveries . | . . Exploration | -11 -10 ------------- Run | Yrd Mat Turns Passed 7175 | 6336 839 Spaces Moved 2616 | 2073 543 Core 11 | 11 . Treads 329 | 68 261 Legs 1994 | 1994 . Wheels 131 | . 131 Hover 151 | . 151 Flight . | . . Fastest Speed 50 | 50 56 Average Speed 120 | 121 116 Slowest Speed 190 | 190 160 Overloaded Moves . | . . Propulsion Burnouts . | . . Robots Hopped . | . . Potential Cave-ins . | . . Cave-ins Triggered 1 | . 1 Exploration Rate (%) 78 | 111 46 Regions Visited 1 Branch Regions . Pre-discovered Areas . | . . Known Exits Taken . | . . Unknown Exits Taken 1 | 1 . Scrap Searched . | . . Spaces Dug . | . . Terrain Destroyed 54 | 10 44 Melee . | . . Projectile . | . . AOE 54 | 10 44 Terrain Rammed . | . . Walls Destroyed . | . . Machines Disabled . | . . Actions | -11 -10 --------- Run | Yrd Mat Total 6522 | 5826 696 Wait 3779 | 3703 76 Move 2615 | 2072 543 Hop . | . . Pick Up 14 | 8 6 Fast Attach 17 | 8 9 Attach 3 | 1 2 Detach 4 | 1 3 Swap 7 | 2 5 Drop 13 | 1 12 Fire 65 | 30 35 Melee 5 | . 5 Ram . | . . Kick . | . . Crush . | . . Escape Stasis . | . . Rewire . | . . Trap . | . . Miscellaneous . | . . Route ------- -11/Scrapyard -10/Materials (discovered 2 exits: [*Mat] / [*Min]) History --------- Turn | Location | Event 8 | -11/Scrapyard | Discovered new exit (range 16) 5212 | -11/Scrapyard | Assembled infested the area 6337 | -11/Scrapyard | Entered Materials 6337 | -10/Materials | Discovered new exit (range 7) 6338 | -10/Materials | Build established: Mutant 6505 | -10/Materials | Discovered new exit (range 3) 6740 | -10/Materials | Crushed by falling debris 6740 | -10/Materials | System corruption reached 10% 6771 | -10/Materials | Lost 5 parts (1p2u2w) 6778 | -10/Materials | Core integrity fell below 50% 6814 | -10/Materials | Core integrity fell below 20% 7153 | -10/Materials | Repaired Seismic Detector 7176 | -10/Materials | Destroyed by G-47 Trooper with Particle Gun Last Messages --------------- Seismic Detector Rating: 1 Time: 26 07121_ System corrupted: Heat flow error (+295). 07127_ Connecting with Repair Station... >>Scan(Seismic Detector) Scanning Seismic Detector... Ready to Repair: Seismic Detector Rating: 1 Time: 26 >>Repair Repairing Seismic Detector... ETC: 26 07153_ Repair station completes Seismic Detector repairs. 07153_ Acquired Seismic Detector. 07173_ Com. Wheel destroyed. 07175_ G-34 Mercenary destroyed. 07176_ K-01 Serf collects debris. Map ----- +----------------------------------------------------+ | ????????????????????????????????? | | ????????????????????????????????? | | ????????????????????????????????? | | ????????????????????????????????? | | ???#############????????????????? | | ???# #????????????????? | | ???# #????????????????? | | ???# """ """ #????????????????? | | ???# """ """ #??? ???????????? | | ???# """ "" #?# ???????????? | | ???# #?# ???????????? | | ???# [ #?# ???????????? | | ???######+######?# #??????????? | | ??????# #?#### #??????????? | | ??????# ###! #####??????? | | ??????# T/ ##! ???????? | | ??????# / =##! ?#?????? | | ??????# #?! #?????? | | ######## ##?? #?????? | | # # #?## ^ "" #?????? | | # """ # #?##### "" #?????? | | # "R" # #?????# T" #?????? | | # " " # #?????# "" #?????? | | # == !# #?#??##! "" #?????? | | # """ # ####### #?????? | | # """ #@ #####+# | | # """ + | | # # | | # """ # " " """ | | # """ # " " """ ###+# | | # """ # """ #???? | | # # #???? | | ######## #???? | | ??????## % " """ #???? | | ??????## " """ #???? | | ??????## % """ ## ! | | ??????##k=% g / | | ??????## [ ##??? | | ??????## #########/## #???? | | ######## # ### """ ## #???? | | # ! # ###?# "Y" ## #???? | | # ! # ##??# ## #???? | | # + ##??# ## #???? | | # # #???# ## #???? | | # "Y" # #???# ## ##### | | # """ # ############# | | ######## # #?????# | | # ! # # #?????# | | # # # #????## ###### | | # + + """ ###### # | +----------------------------------------------------+ Best States ------------- Heat Dissipation 25 Energy Generation 10 Energy Capacity 250 Matter Stores 300 Matter Capacity 300 Sight Range 16 Robot Scan Range 14 Terrain Scan Density 10 Weapon Shielding 33 Evasion (%) 55 Recoil Reduction 2 Item Schematics ----------------- None Robot Schematics ------------------ None Fabricated ------------ Nothing Repaired ---------- Seismic Detector | 50% | -10/Materials Studied --------- None Alien Tech Used ----------------- None Achievements -------------- Fitting Room Challenges ------------ None Game ------ Seed MiningHypercooledScythe Manual? 0 Play Time 00:24:47 Cumulative 16.4 hours Start 2026.01.06 @ 01:30:32 End 2026.01.06 @ 02:16:29 Sessions 1 Manual Loads 0 Difficulty Rogue Special Mode None Game No. 21 Rogue 21 Adventurer 0 Explorer 0 Win Type - Total 0 Types 0/0/0/0/0/0/0/0/0/0 Lore% 16 Gallery% 15 Achievement% 16 Wizard Run 0 Options --------- Layout 1 ASCII 0 Keyboard 0 Movement Arrows Keybinds 0 Fullscreen 2 Font 24/Crisp Map View 50x35 Zoom Use 0% Tactical HUD 1 Map Filters NONE Filters NONE Steam 1 RUN: 11588f66-8d1d-4918-93e1-9de0d13adbd8